fUSD/lending_fUSD_20251130
["ID","MTS","AMOUNT","RATE_DAILY","PERIOD"]
[395149131,1764481839298,-500.0,0.00013766,2]
[395149132,1764481839308,-500.0,0.00013766,2]
[395149133,1764481839317,-500.0,0.00013766,2]
[395149134,1764481839326,-641.47208077,0.00013766,2]
[395149135,1764481839335,-500.0,0.00013766,2]
[395149136,1764481839344,-181.30501265,0.00013766,2]
[395149137,1764481839353,-500.0,0.00013766,2]
[395149138,1764481839363,-500.0,0.00013766,2]
[395149139,1764481839372,-500.0,0.00013766,2]
[395149141,1764481839381,-500.0,0.00013766,2]
[395149142,1764481839390,-500.0,0.00013766,2]
[395149143,1764481839400,-510.07916645,0.00013766,2]
[395149144,1764481839410,-520.38859671,0.00013766,2]
[395149145,1764481839419,-500.0,0.00013766,2]
[395149146,1764481839428,-832.92,0.00013972,2]
[395149147,1764481839438,-1883.82,0.00014128,2]
[395149148,1764481839447,-832.92,0.00014246,2]
[395149149,1764481839456,-413.09201025,0.00014306,2]
[395149150,1764481839465,-196.4507859,0.00014306,2]
[395149151,1764481839474,-179.9325008,0.00014306,2]
[395149152,1764481839483,-108273.61,0.00014307,2]
[395149153,1764481839492,-8907.19615001,0.00014421,2]
[395149154,1764481839501,-832.92,0.0001452,2]
[395149155,1764481839511,-9999.99,0.00014521,2]
[395149156,1764481839519,-3511.55,0.00014521,2]
[395149157,1764481839529,-2954.41,0.00014521,2]
[395149158,1764481839538,-151.0,0.00014521,2]
[395149159,1764481839547,-8907.19615,0.00014696,2]
[395149160,1764481839555,-832.92,0.00014794,2]
[395149161,1764481839565,-255.0,0.0001482,2]
[395149162,1764481839575,-9999.99,0.000149,2]
[395149163,1764481839584,-1428.12,0.000149,2]
[395149164,1764481839593,-299.99,0.000149,2]
[395149165,1764481839606,-999.99,0.000149,2]
[395149166,1764481839615,-150.99,0.000149,2]
[395149168,1764481839624,-1166.7,0.000149,2]
[395149170,1764481839633,-150.99,0.000149,2]
[395149172,1764481839643,-8907.19615,0.00014972,2]
[395149173,1764481839652,-420.0,0.0001501,2]
[395149174,1764481839661,-195.0,0.00015033,2]
[395149175,1764481839671,-250.0,0.00015033,2]
[395149176,1764481839680,-195.0,0.00015044,2]
[395149177,1764481839694,-195.0,0.00015044,2]
[395149178,1764481839705,-195.0,0.00015044,2]
[395149179,1764481839717,-2500.0,0.00015064,2]
[395149180,1764481839726,-6230.62648179,0.00015064,2]
[395149181,1764481839736,-1680.0,0.00015067,2]
[395149182,1764481839745,-832.95127705,0.00015068,2]
[395149183,1764481839754,-151.0,0.00015069,2]
[395149184,1764481839764,-760000.0,0.00015073,2]
[395149185,1764481839773,-263.48,0.00015141,2]
[395149186,1764481839782,-207.4,0.00015164,2]
[395149187,1764481839792,-200.0,0.00015164,2]
[395149188,1764481839801,-8907.19615,0.00015247,2]
[395149189,1764481839810,-500.0,0.0001526,2]
[395149190,1764481839819,-200.0,0.00015267,2]
[395149191,1764481839829,-6230.62648171,0.00015268,2]
[395149192,1764481839838,-150.0,0.00015288,2]
[395149193,1764481839847,-150.0,0.00015288,2]
[395149194,1764481839856,-150.0,0.00015288,2]
[395149195,1764481839865,-150.0,0.00015288,2]
[395149196,1764481839874,-150.0,0.00015288,2]
[395149197,1764481839883,-150.0,0.00015288,2]
[395149198,1764481839892,-150.0,0.00015288,2]
[395149199,1764481839902,-150.0,0.00015288,2]
[395149200,1764481839912,-245.89851421,0.00015288,2]
[395149201,1764481839922,-150.0,0.00015288,2]
[395149202,1764481839932,-151.04072084,0.00015288,2]
[395149203,1764481839944,-150.0,0.00015288,2]
[395149204,1764481839955,-150.0,0.00015288,2]
[395149205,1764481839964,-150.0,0.00015288,2]
[395149206,1764481839974,-164.1,0.0001532,2]
[395149207,1764481839986,-844.65441672,0.00015328,2]
[395149208,1764481839996,-150.0,0.00015358,2]
[395149209,1764481840005,-150.0,0.00015373,2]
[395149210,1764481840016,-245.44,0.00015402,2]
[395149211,1764481840025,-150.0,0.00015409,2]
[395149212,1764481840034,-150.0,0.00015418,2]
[395149213,1764481840043,-976.88386487,0.00015428,2]
[395149214,1764481840052,-578.20924308,0.00015428,2]
[395149215,1764481840062,-250.0,0.00015428,2]
[395149216,1764481840077,-533.88981491,0.00015428,2]
[395149217,1764481840086,-160.0,0.00015428,2]
[395149218,1764481840095,-151.0,0.00015428,2]
[395149219,1764481840104,-1000.0,0.00015428,2]
[395149220,1764481840114,-500.0,0.00015428,2]
[395149221,1764481840126,-250.0,0.00015428,2]
[395149222,1764481840136,-151.0,0.00015428,2]
[395149223,1764481840146,-1000.0,0.00015428,2]
[395149224,1764481840156,-500.0,0.00015428,2]
[395149225,1764481840165,-250.0,0.00015428,2]
[395149226,1764481840174,-151.0,0.00015428,2]
[395149227,1764481840183,-1000.0,0.00015428,2]
[395149228,1764481840194,-500.0,0.00015428,2]
[395149229,1764481840207,-250.0,0.00015428,2]
[395149230,1764481840221,-151.0,0.00015428,2]
[395149231,1764481840231,-1000.0,0.00015428,2]
[395149232,1764481840240,-500.0,0.00015428,2]
[395149233,1764481840252,-250.0,0.00015428,2]
[395149235,1764481840261,-151.0,0.00015428,2]
[395149237,1764481840271,-1000.0,0.00015428,2]
[395149238,1764481840286,-500.0,0.00015428,2]
[395149239,1764481840295,-250.0,0.00015428,2]
[395149240,1764481840305,-151.0,0.00015428,2]
[395149241,1764481840315,-500.0,0.00015428,2]
[395149242,1764481840324,-250.0,0.00015428,2]
[395149243,1764481840334,-1000.0,0.00015428,2]
[395149244,1764481840344,-151.0,0.00015428,2]
[395149245,1764481840353,-500.0,0.00015428,2]
[395149246,1764481840362,-250.0,0.00015428,2]
[395149247,1764481840371,-1000.0,0.00015428,2]
[395149248,1764481840381,-151.0,0.00015428,2]
[395149249,1764481840391,-197.60270261,0.00015428,2]
[395149250,1764481840400,-500.0,0.00015428,2]
[395149251,1764481840409,-250.0,0.00015428,2]
[395149252,1764481840418,-1000.0,0.00015428,2]
[395149253,1764481840428,-151.96835927,0.00015428,2]
[395149254,1764481840437,-151.0,0.00015428,2]
[395149255,1764481840447,-500.0,0.00015428,2]
[395149256,1764481840456,-250.0,0.00015428,2]
[395149257,1764481840465,-1000.0,0.00015428,2]
[395149258,1764481840474,-151.0,0.00015428,2]
[395149259,1764481840483,-500.0,0.00015428,2]
[395149260,1764481840493,-153.33020612,0.00015428,2]
[395149261,1764481840503,-250.0,0.00015428,2]
[395149262,1764481840512,-1000.0,0.00015428,2]
[395149263,1764481840522,-151.0,0.00015428,2]
[395149264,1764481840531,-500.0,0.00015428,2]
[395149265,1764481840540,-250.0,0.00015428,2]
[395149266,1764481840549,-1000.0,0.00015428,2]
[395149267,1764481840558,-151.0,0.00015428,2]
[395149268,1764481840567,-151.0,0.00015428,2]
[395149269,1764481840577,-500.0,0.00015428,2]
[395149270,1764481840587,-1000.0,0.00015428,2]
[395149271,1764481840596,-256.74036744,0.00015428,2]
[395149272,1764481840605,-151.0,0.00015428,2]
[395149273,1764481840614,-514.58566631,0.00015428,2]
[395149274,1764481840623,-1000.0,0.00015428,2]
[395149275,1764481840632,-151.0,0.00015428,2]
[395149276,1764481840642,-620.0,0.00015428,2]
[395149277,1764481840651,-250.0,0.00015428,2]
[395149278,1764481840661,-250.0,0.00015428,2]
[395149279,1764481840671,-250.0,0.00015428,2]
[395149280,1764481840680,-250.0,0.00015428,2]
[395149281,1764481840689,-684.39182428,0.00015428,2]
[395149282,1764481840699,-250.0,0.00015428,2]
[395149283,1764481840708,-500.0,0.00015428,2]
[395149284,1764481840717,-500.0,0.00015428,2]
[395149285,1764481840726,-250.0,0.00015428,2]
[395149286,1764481840736,-500.0,0.00015428,2]
[395149287,1764481840745,-500.0,0.00015428,2]
[395149288,1764481840754,-250.0,0.00015428,2]
[395149289,1764481840763,-500.0,0.00015428,2]
[395149290,1764481840772,-500.0,0.00015428,2]
[395149291,1764481840781,-194.99852451,0.00015428,2]
[395149292,1764481840791,-250.0,0.00015428,2]
[395149293,1764481840800,-250.0,0.00015428,2]
[395149294,1764481840809,-500.0,0.00015428,2]
[395149295,1764481840818,-500.0,0.00015428,2]
[395149296,1764481840827,-250.0,0.00015428,2]
[395149297,1764481840836,-250.0,0.00015428,2]
[395149298,1764481840846,-500.0,0.00015428,2]
[395149299,1764481840855,-500.0,0.00015428,2]
[395149300,1764481840864,-207.60760368,0.00015428,2]
[395149301,1764481840874,-250.0,0.00015428,2]
[395149302,1764481840883,-500.0,0.00015428,2]
[395149303,1764481840892,-500.0,0.00015428,2]
[395149304,1764481840901,-500.0,0.00015428,2]
[395149305,1764481840910,-250.0,0.00015428,2]
[395149306,1764481840919,-500.0,0.00015428,2]
[395149307,1764481840929,-500.0,0.00015428,2]
[395149308,1764481840938,-250.0,0.00015428,2]
[395149309,1764481840947,-500.0,0.00015428,2]
[395149311,1764481840955,-500.0,0.00015428,2]
[395149312,1764481840965,-250.0,0.00015428,2]
[395149313,1764481840974,-500.0,0.00015428,2]
[395149315,1764481840982,-500.0,0.00015428,2]
[395149317,1764481840991,-500.0,0.00015428,2]
[395149318,1764481841000,-250.0,0.00015428,2]
[395149319,1764481841009,-500.0,0.00015428,2]
[395149320,1764481841018,-250.0,0.00015428,2]
[395149321,1764481841028,-500.0,0.00015428,2]
[395149322,1764481841038,-500.0,0.00015428,2]
[395149323,1764481841047,-250.0,0.00015428,2]
[395149324,1764481841057,-500.0,0.00015428,2]
[395149325,1764481841067,-250.0,0.00015428,2]
[395149326,1764481841076,-500.0,0.00015428,2]
[395149327,1764481841086,-500.0,0.00015428,2]
[395149328,1764481841096,-250.0,0.00015428,2]
[395149329,1764481841105,-500.0,0.00015428,2]
[395149330,1764481841115,-250.0,0.00015428,2]
[395149331,1764481841124,-500.0,0.00015428,2]
[395149332,1764481841133,-500.0,0.00015428,2]
[395149333,1764481841143,-1000.0,0.00015428,2]
[395149334,1764481841153,-500.0,0.00015428,2]
[395149335,1764481841162,-250.0,0.00015428,2]
[395149336,1764481841171,-250.0,0.00015428,2]
[395149337,1764481841180,-500.0,0.00015428,2]
[395149338,1764481841189,-500.0,0.00015428,2]
[395149339,1764481841198,-8000.0,0.00015428,2]
[395149340,1764481841210,-500.0,0.00015428,2]
[395149341,1764481841219,-250.0,0.00015428,2]
[395149342,1764481841228,-250.0,0.00015428,2]
[395149343,1764481841237,-500.0,0.00015428,2]
[395149344,1764481841247,-8000.0,0.00015428,2]
[395149345,1764481841257,-250.0,0.00015428,2]
[395149346,1764481841266,-250.0,0.00015428,2]
[395149347,1764481841276,-500.0,0.00015428,2]
[395149348,1764481841285,-8000.0,0.00015428,2]
[395149349,1764481841294,-1000.0,0.00015428,2]
[395149350,1764481841630,-250.0,0.00015428,2]
[395149351,1764481841640,-242.76972511,0.00015428,2]
[395149352,1764481841649,-500.0,0.00015428,2]
[395149353,1764481841658,-8000.0,0.00015428,2]
[395149354,1764481841667,-1000.0,0.00015428,2]
[395149355,1764481841676,-250.0,0.00015428,2]
[395149356,1764481841685,-500.0,0.00015428,2]
[395149357,1764481841695,-8000.0,0.00015428,2]
[395149358,1764481841704,-1000.0,0.00015428,2]
[395149359,1764481841714,-250.0,0.00015428,2]
[395149360,1764481841723,-500.0,0.00015428,2]
[395149361,1764481841732,-8000.0,0.00015428,2]
[395149362,1764481841741,-250.0,0.00015428,2]
[395149363,1764481841751,-1000.0,0.00015428,2]
[395149364,1764481841760,-300.0,0.00015428,2]
[395149365,1764481841769,-500.0,0.00015428,2]
[395149366,1764481841779,-8000.0,0.00015428,2]
[395149367,1764481841788,-250.0,0.00015428,2]
[395149368,1764481841796,-1000.0,0.00015428,2]
[395149369,1764481841806,-8000.0,0.00015428,2]
[395149370,1764481841815,-250.0,0.00015428,2]
[395149371,1764481841825,-1000.0,0.00015428,2]
[395149372,1764481841834,-8000.0,0.00015428,2]
[395149373,1764481841843,-1000.0,0.00015428,2]
[395149374,1764481841852,-8000.0,0.00015428,2]
[395149375,1764481841861,-1000.0,0.00015428,2]
[395149376,1764481841870,-8000.0,0.00015428,2]
[395149377,1764481841879,-1000.0,0.00015428,2]
[395149378,1764481841888,-8000.0,0.00015428,2]
[395149379,1764481841897,-1000.0,0.00015428,2]
[395149380,1764481841906,-8000.0,0.00015428,2]
[395149381,1764481841915,-1000.0,0.00015428,2]
[395149382,1764481841924,-1000.0,0.00015428,2]
[395149383,1764481841934,-1000.0,0.00015428,2]
[395149384,1764481841944,-151.0,0.00015428,2]
[395149385,1764481841953,-257.91778498,0.00015428,2]
[395149387,1764481841963,-150.0,0.00015429,2]
[395149388,1764481841973,-150.0,0.00015429,2]
[395149390,1764481841982,-150.0,0.00015458,2]
[395149391,1764481841991,-150.0,0.00015458,2]
[395149392,1764481842000,-6230.62648171,0.00015472,2]
[395149393,1764481842010,-150.0,0.000155,2]
[395149394,1764481842019,-8907.19615,0.00015523,2]
[395149395,1764481842029,-150.0,0.0001553,2]
[395149396,1764481842038,-150.0,0.0001553,2]
[395149397,1764481842047,-150.0,0.00015542,2]
[395149398,1764481842059,-150.0,0.00015549,2]
[395149399,1764481842069,-150.0,0.00015571,2]
[395149400,1764481842079,-150.0,0.00015571,2]
[395149401,1764481842088,-4630.98,0.00015595,2]
[395149402,1764481842098,-151.0,0.00015617,2]
[395149403,1764481842107,-150.0,0.00015627,2]
[395149404,1764481842116,-150.0,0.00015627,2]
[395149405,1764481842125,-150.0,0.00015642,2]
[395149406,1764481842134,-150.0,0.00015652,2]
[395149407,1764481842144,-6230.62648171,0.00015676,2]
[395149408,1764481842153,-150.0,0.0001568,2]
[395149409,1764481842163,-166.66,0.00015682,2]
[395149410,1764481842172,-222.23133543,0.00015702,2]
[395149411,1764481842181,-150.0,0.00015712,2]
[395149412,1764481842191,-150.0,0.00015712,2]
[395149413,1764481842202,-150.0,0.00015712,2]
[395149414,1764481842212,-150.0,0.00015712,2]
[395149415,1764481842221,-150.0,0.00015773,2]
[395149416,1764481842230,-150.0,0.00015773,2]
[395149417,1764481842239,-150.0,0.00015783,2]
[395149418,1764481842249,-150.0,0.00015797,2]
[395149419,1764481842259,-150.0,0.00015797,2]
[395149420,1764481842268,-8907.19615,0.00015798,2]
[395149421,1764481842278,-150.0,0.0001581,2]
[395149422,1764481842288,-150.0,0.00015854,2]
[395149423,1764481842297,-150.0,0.00015854,2]
[395149424,1764481842306,-150.0,0.00015854,2]
[395149425,1764481842316,-6230.62648171,0.0001588,2]
[395149426,1764481842325,-150.0,0.00015882,2]
[395149427,1764481842335,-150.0,0.00015894,2]
[395149429,1764481842344,-774.27257095,0.000159,2]
[395149431,1764481842354,-774.27257091,0.000159,2]
[395149433,1764481842363,-774.27257091,0.000159,2]
[395149435,1764481842373,-774.27257091,0.000159,2]
[395149437,1764481842382,-774.27257091,0.000159,2]
[395149439,1764481842392,-774.27257091,0.000159,2]
[395149441,1764481842401,-150.0,0.00015925,2]
[395149443,1764481842410,-150.0,0.00015941,2]
[395149445,1764481842419,-150.0,0.00015967,2]
[395149447,1764481842429,-150.0,0.00015967,2]
[395149448,1764481842438,-168.83814577,0.00015973,2]
[395149450,1764481842447,-500.0,0.00015973,2]
[395149452,1764481842456,-500.67033619,0.00015973,2]
[395149453,1764481842466,-500.0,0.00015973,2]
[395149454,1764481842475,-500.88533786,0.00015973,2]
[395149455,1764481842484,-545.80271006,0.00015973,2]
[395149456,1764481842493,-161.07388452,0.00015973,2]
[395149457,1764481842502,-500.0,0.00015973,2]
[395149458,1764481842511,-165.08638781,0.00015973,2]
[395149459,1764481842521,-176.19485435,0.00015973,2]
[395149460,1764481842531,-503.30230408,0.00015973,2]
[395149461,1764481842541,-500.0,0.00015973,2]
[395149462,1764481842551,-500.0,0.00015973,2]
[395149463,1764481842560,-500.0,0.00015973,2]
[395149464,1764481842570,-500.0,0.00015973,2]
[395149465,1764481842580,-160.07187961,0.00015973,2]
[395149466,1764481842590,-504.72891622,0.00015973,2]
[395149467,1764481842600,-500.0,0.00015973,2]
[395149468,1764481842609,-500.0,0.00015973,2]
[395149469,1764481842619,-622.74851177,0.00015973,2]
[395149470,1764481842629,-500.0,0.00015973,2]
[395149472,1764481842639,-500.0,0.00015973,2]
[395149474,1764481842650,-500.0,0.00015973,2]
[395149476,1764481842660,-160.04783372,0.00015973,2]
[395149478,1764481842670,-500.21383285,0.00015973,2]
[395149479,1764481842679,-500.0,0.00015973,2]
[395149480,1764481842689,-500.0,0.00015973,2]
[395149481,1764481842699,-500.0,0.00015973,2]
[395149482,1764481842708,-215.69681959,0.00015973,2]
[395149483,1764481842718,-500.0,0.00015973,2]
[395149484,1764481842729,-500.0,0.00015973,2]
[395149485,1764481842738,-500.0,0.00015973,2]
[395149486,1764481842747,-500.0,0.00015973,2]
[395149487,1764481842758,-500.0,0.00015973,2]
[395149488,1764481842768,-553.64373807,0.00015976,2]
[395149489,1764481842778,-151.0,0.00015976,2]
[395149490,1764481842787,-642.94,0.00015976,2]
[395149491,1764481842797,-1000.0,0.00015976,2]
[395149492,1764481842807,-241.19087969,0.00015976,2]
[395149493,1764481842817,-263.48,0.00015982,2]
[395149494,1764481842826,-150.0,0.00015995,2]
[395149495,1764481842834,-150.0,0.00015995,2]
[395149496,1764481842845,-150.0,0.00016016,2]
[395149497,1764481842854,-150.0,0.00016016,2]
[395149498,1764481842863,-433.0,0.00016039,2]
[395149499,1764481842872,-150.0,0.00016052,2]
[395149500,1764481842881,-150.0,0.00016066,2]
[395149501,1764481842890,-150.0,0.00016072,2]
[395149502,1764481842900,-8907.19615,0.00016074,2]
[395149503,1764481842910,-6230.62648171,0.00016084,2]
[395149504,1764481842919,-8906.68,0.00016116,2]
[395149505,1764481842928,-22753.23,0.00016116,2]
[395149506,1764481842939,-150.0,0.00016137,2]
[395149507,1764481842951,-150.0,0.00016137,2]
[395149508,1764481842961,-150.0,0.00016137,2]
[395149509,1764481842971,-150.0,0.00016137,2]
[395149510,1764481842980,-150.0,0.00016137,2]
[395149511,1764481842990,-150.0,0.00016137,2]
[395149512,1764481843000,-150.0,0.00016137,2]
[395149513,1764481843009,-151.0,0.00016165,2]
[395149514,1764481843019,-500.0,0.00016199,2]
[395149515,1764481843028,-500.0,0.00016199,2]
[395149516,1764481843037,-500.0,0.00016199,2]
[395149517,1764481843046,-500.0,0.00016199,2]
[395149518,1764481843055,-500.0,0.00016199,2]
[395149519,1764481843064,-500.0,0.00016199,2]
[395149520,1764481843073,-500.0,0.00016199,2]
[395149521,1764481843083,-500.0,0.00016199,2]
[395149522,1764481843093,-500.0,0.00016199,2]
[395149523,1764481843102,-500.0,0.00016199,2]
[395149524,1764481843112,-500.0,0.00016199,2]
[395149525,1764481843121,-166.66,0.000162,2]
[395149526,1764481843130,-150.0,0.00016202,2]
[395149527,1764481843140,-150.0,0.00016208,2]
[395149528,1764481843149,-150.0,0.00016222,2]
[395149529,1764481843158,-150.0,0.00016258,2]
[395149530,1764481843167,-150.0,0.00016258,2]
[395149532,1764481843176,-150.0,0.00016279,2]
[395149533,1764481843185,-150.0,0.00016279,2]
[395149534,1764481843199,-6230.62648171,0.00016288,2]
[395149535,1764481843213,-150.0,0.00016307,2]
[395149536,1764481843221,-150.0,0.00016307,2]
[395149537,1764481843231,-150.0,0.00016333,2]
[395149538,1764481843240,-8907.19615,0.00016349,2]
[395149539,1764481843250,-150.0,0.00016349,2]
[395149540,1764481843259,-150.0,0.0001638,2]
[395149541,1764481843269,-150.0,0.00016392,2]
[395149544,1764481843278,-150.0,0.0001642,2]
[395149545,1764481843288,-150.0,0.0001642,2]
[395149546,1764481843297,-150.0,0.0001642,2]
[395149547,1764481843306,-500.0,0.00016438,2]
[395149548,1764481843315,-500.0,0.00016438,2]
[395149549,1764481843324,-500.0,0.00016438,2]
[395149550,1764481843333,-159.2792213,0.00016438,2]
[395149551,1764481843343,-500.0,0.00016438,2]
[395149552,1764481843352,-500.0,0.00016438,2]
[395149553,1764481843361,-500.0,0.00016438,2]
[395149554,1764481843370,-500.0,0.00016438,2]
[395149555,1764481843380,-500.0,0.00016438,2]
[395149556,1764481843389,-500.0,0.00016438,2]
[395149557,1764481843401,-500.0,0.00016438,2]
[395149558,1764481843410,-500.0,0.00016438,2]
[395149559,1764481843419,-500.0,0.00016438,2]
[395149560,1764481843428,-500.0,0.00016438,2]
[395149561,1764481843437,-500.0,0.00016438,2]
[395149562,1764481843446,-500.0,0.00016438,2]
[395149563,1764481843455,-500.0,0.00016438,2]
[395149564,1764481843464,-500.0,0.00016438,2]
[395149565,1764481843474,-500.0,0.00016438,2]
[395149566,1764481843483,-483.51299171,0.00016438,2]
[395149567,1764481843492,-500.0,0.00016438,2]
[395149568,1764481843501,-500.0,0.00016438,2]
[395149569,1764481843510,-500.0,0.00016438,2]
[395149570,1764481843519,-500.0,0.00016438,2]
[395149571,1764481843528,-500.0,0.00016438,2]
[395149572,1764481843537,-500.0,0.00016438,2]
[395149573,1764481843546,-500.0,0.00016438,2]
[395149574,1764481843555,-800.0,0.00016438,2]
[395149575,1764481843564,-587.0,0.0001645,2]
[395149576,1764481843574,-150.0,0.00016464,2]
[395149577,1764481843583,-150.0,0.00016477,2]
[395149578,1764481843595,-150.0,0.00016477,2]
[395149579,1764481843606,-150.0,0.00016491,2]
[395149580,1764481843615,-6230.62648171,0.00016492,2]
[395149581,1764481843624,-150.0,0.00016501,2]
[395149582,1764481843635,-150.0,0.00016501,2]
[395149583,1764481843645,-916.80275832,0.00016521,2]
[395149584,1764481843655,-501.57760606,0.00016521,2]
[395149585,1764481843665,-1001.35128612,0.00016521,2]
[395149586,1764481843674,-1000.745763,0.00016521,2]
[395149587,1764481843685,-1000.0,0.00016521,2]
[395149588,1764481843694,-495.14510969,0.00016521,2]
[395149589,1764481843704,-1000.0,0.00016521,2]
[395149590,1764481843714,-1000.0,0.00016521,2]
[395149591,1764481843724,-193.94586418,0.00016521,2]
[395149592,1764481843733,-1000.0,0.00016521,2]
[395149593,1764481843743,-957.90842426,0.00016521,2]
[395149594,1764481843753,-1018.43163791,0.00016521,2]
[395149595,1764481843762,-500.77322072,0.00016521,2]
[395149596,1764481843772,-1001.18740995,0.00016521,2]
[395149597,1764481843781,-1000.0,0.00016521,2]
[395149598,1764481843793,-1000.0,0.00016521,2]
[395149599,1764481843802,-1000.0,0.00016521,2]
[395149600,1764481843812,-360.33354768,0.00016521,2]
[395149601,1764481843822,-1002.56103431,0.00016521,2]
[395149602,1764481843831,-1000.0,0.00016521,2]
[395149603,1764481843841,-574.12855637,0.00016524,2]
[395149604,1764481843850,-151.8981321,0.00016524,2]
[395149605,1764481843860,-666.72878,0.00016524,2]
[395149606,1764481843869,-1000.0,0.00016524,2]
[395149607,1764481843878,-150.0,0.00016562,2]
[395149608,1764481843888,-150.0,0.00016562,2]
[395149609,1764481843898,-150.0,0.00016562,2]
[395149610,1764481843907,-150.0,0.00016562,2]
[395149611,1764481843916,-2351.0,0.00016573,2]
[395149612,1764481843925,-150.0,0.00016594,2]
[395149613,1764481843935,-150.0,0.00016622,2]
[395149614,1764481843944,-8907.19615,0.00016625,2]
[395149615,1764481843955,-150.0,0.00016632,2]
[395149616,1764481843964,-150.0,0.00016647,2]
[395149617,1764481843974,-150.0,0.00016647,2]
[395149618,1764481843984,-6230.62648171,0.00016696,2]
[395149619,1764481843993,-150.0,0.00016703,2]
[395149620,1764481844002,-150.0,0.00016703,2]
[395149621,1764481844012,-166.66,0.00016718,2]
[395149622,1764481844022,-150.0,0.00016725,2]
[395149623,1764481844031,-217.11171558,0.00016725,2]
[395149624,1764481844040,-150.0,0.00016732,2]
[395149625,1764481844050,-150.0,0.00016744,2]
[395149626,1764481844059,-150.0,0.00016744,2]
[395149627,1764481844069,-150.0,0.00016774,2]
[395149628,1764481844078,-163.27944846,0.00016797,2]
[395149629,1764481844088,-151.0,0.00016797,2]
[395149630,1764481844097,-311.1,0.00016797,2]
[395149631,1764481844106,-267.46074303,0.00016797,2]
[395149632,1764481844116,-500.0,0.0001681,2]
[395149633,1764481844125,-150.0,0.00016816,2]
[395149634,1764481844135,-150.0,0.00016816,2]
[395149635,1764481844144,-263.48,0.00016823,2]
[395149636,1764481844153,-150.0,0.00016845,2]
[395149637,1764481844163,-150.0,0.00016845,2]
[395149638,1764481844182,-3459.699,0.00016845,2]
[395149639,1764481844192,-181.688,0.00016845,2]
[395149640,1764481844203,-150.0,0.00016856,2]
[395149641,1764481844214,-200.0,0.00016864,2]
[395149642,1764481844224,-150.0,0.00016865,2]
[395149643,1764481844234,-151.0,0.00016897,2]
[395149644,1764481844244,-500.0,0.00016899,2]
[395149645,1764481844254,-500.0,0.00016899,2]
[395149646,1764481844264,-500.0,0.00016899,2]
[395149647,1764481844274,-500.0,0.000169,2]
[395149648,1764481844284,-33399.3792,0.000169,2]
[395149649,1764481844294,-1000.0,0.000169,2]
[395149650,1764481844303,-7391.301,0.000169,2]
[395149651,1764481844313,-10000.0,0.000169,2]
[395149652,1764481844323,-8907.19615,0.000169,2]
[395149653,1764481844332,-201.41866534,0.000169,2]
[395149654,1764481844342,-6230.62648171,0.000169,2]
[395149655,1764481844351,-441.01777814,0.000169,2]
[395149656,1764481844361,-390.47377755,0.000169,2]
[395149657,1764481844371,-500.0,0.000169,2]
[395149658,1764481844381,-500.0,0.000169,2]
[395149659,1764481844392,-500.0,0.000169,2]
[395149660,1764481844402,-500.0,0.000169,2]